lending/lending_fUSD_20241229
["ID","MTS","AMOUNT","RATE_DAILY","PERIOD"]
[347121562,1735511328974,150.123007,0.00023,120]
[347121563,1735511329406,150.123007,0.00023,120]
[347121565,1735511329814,150.123007,0.00023,120]
[347121566,1735511330203,150.123007,0.00023,120]
[347121567,1735511330660,150.123007,0.00023,120]
[347121568,1735511331060,150.123007,0.00023,120]
[347121569,1735511331540,150.123007,0.00023,120]
[347121570,1735511331979,150.123007,0.00023,120]
[347121571,1735511332544,150.123007,0.00023,120]
[347121572,1735511332967,150.123007,0.00023,120]
[347121573,1735511333477,150.123007,0.00023,120]
[347121574,1735511336421,150.123007,0.00023,120]
[347121575,1735511346749,150.123007,0.00023,120]
[347121576,1735511347348,150.123007,0.00023,120]
[347121577,1735511348080,150.123007,0.00023,120]
[347121578,1735511348369,150.123007,0.00023,120]
[347121590,1735511432262,-540.577923,0.0001194,2]
[347121591,1735511432272,-450.0,0.00012,2]
[347121592,1735511432282,-16585.0,0.00012488,2]
[347121593,1735511432291,-174.44156014,0.000129,2]
[347121594,1735511432300,-978.49414827,0.000129,2]
[347121595,1735511432311,-174.14533046,0.000129,2]
[347121596,1735511432321,-943.6316685,0.00012999,2]
[347121597,1735511432330,-500.0,0.00012999,2]
[347121598,1735511432340,-500.0,0.00012999,2]
[347121599,1735511432349,-500.0,0.00012999,2]
[347121600,1735511432359,-1842.72,0.00012999,2]
[347121601,1735511432369,-500.0,0.00012999,2]
[347121602,1735511432378,-2227.56619563,0.00012999,2]
[347121603,1735511432389,-278.68141048,0.00012999,2]
[347121604,1735511432401,-4770.44239389,0.00012999,2]
[347121605,1735511432410,-1864.36,0.00012999,2]
[347121606,1735511432420,-1909.54,0.00012999,2]
[347121607,1735511432430,-1326.63,0.00012999,2]
[347121608,1735511432440,-834.47,0.00012999,2]
[347121609,1735511432449,-2627.01,0.00012999,2]
[347121610,1735511432458,-500.0,0.00012999,2]
[347121611,1735511432468,-500.0,0.00012999,2]
[347121612,1735511432477,-553.24,0.00012999,2]
[347121613,1735511432486,-500.0,0.00012999,2]
[347121614,1735511432496,-500.0,0.00012999,2]
[347121615,1735511432505,-500.0,0.00012999,2]
[347121616,1735511432514,-500.0,0.00012999,2]
[347121617,1735511432524,-500.0,0.00012999,2]
[347121618,1735511432533,-500.0,0.00012999,2]
[347121619,1735511432543,-500.0,0.00012999,2]
[347121620,1735511432553,-292.30698525,0.00012999,2]
[347121621,1735511432563,-27296.03757221,0.00013,2]
[347121622,1735511432575,-409.06059141,0.00013,2]
[347121623,1735511432608,-275.36619673,0.00013,2]
[347121624,1735511432619,-124851.96330812,0.00013,2]
[347121625,1735511432630,-479.87529719,0.00013,2]
[347121626,1735511432642,-8134.32144679,0.00013,2]
[347121630,1735511432694,-22644.2344175,0.00013,2]
[347121632,1735511432705,-31827.02936451,0.00013,2]
[347121635,1735511432914,-309.012,0.00013,2]
[347121636,1735511432953,-476.67512439,0.00013,2]
[347121637,1735511432965,-5279.76742333,0.00013,2]
[347121638,1735511432976,-10441.24431677,0.00013,2]
[347121639,1735511432988,-1838.41903263,0.00013,2]
[347121640,1735511432999,-11596.56636101,0.00013,2]
[347121641,1735511433010,-1262.52820871,0.00013,2]
[347121642,1735511433022,-25318.83768634,0.00013,2]
[347121643,1735511433034,-2191.82797404,0.00013,2]
[347121644,1735511433046,-1335.27392991,0.00013,2]
[347121645,1735511433066,-399.40695483,0.00012999,2]
[347121646,1735511433075,-2824.88128182,0.00013,2]
[347121649,1735511438144,-500.0,0.00012999,2]
[347121650,1735511438154,-939.03,0.00012999,2]
[347121651,1735511438163,-500.0,0.00012999,2]
[347121652,1735511438174,-500.0,0.00012999,2]
[347121653,1735511438185,-722.41,0.00012999,2]
[347121654,1735511438197,-500.0,0.00012999,2]
[347121655,1735511438207,-500.0,0.00012999,2]
[347121656,1735511438216,-153259.88398484,0.00013,2]
[347121657,1735511438227,-1994.08905414,0.00013,2]
[347121658,1735511438245,-123720.49401255,0.00013,2]
[347121659,1735511438255,-535186.95794262,0.00013,2]
[347121660,1735511438264,-13799.05,0.00013,2]
[347121661,1735511438273,-781.93,0.00013246,2]
[347121662,1735511438282,-500.0,0.00013273,2]
[347121663,1735511438292,-1842.72,0.00013273,2]
[347121664,1735511438302,-500.0,0.00013273,2]
[347121665,1735511438311,-7276.69,0.00013273,2]
[347121666,1735511438321,-1864.36,0.00013273,2]
[347121667,1735511438331,-1909.54,0.00013273,2]
[347121668,1735511438340,-1326.63,0.00013273,2]
[347121669,1735511438350,-2627.01,0.00013273,2]
[347121670,1735511438359,-834.47,0.00013273,2]
[347121671,1735511438369,-500.0,0.00013273,2]
[347121672,1735511438378,-500.0,0.00013273,2]
[347121673,1735511438387,-553.24,0.00013273,2]
[347121674,1735511438396,-500.0,0.00013273,2]
[347121675,1735511438405,-500.0,0.00013273,2]
[347121676,1735511438414,-500.0,0.00013273,2]
[347121677,1735511438424,-500.0,0.00013273,2]
[347121678,1735511438433,-500.0,0.00013273,2]
[347121679,1735511438443,-500.0,0.00013273,2]
[347121680,1735511438452,-500.0,0.00013273,2]
[347121681,1735511438461,-500.0,0.00013273,2]
[347121682,1735511438470,-500.0,0.00013273,2]
[347121683,1735511438479,-939.03,0.00013273,2]
[347121684,1735511438489,-470.08,0.00013273,2]
[347121685,1735511438498,-722.41,0.00013273,2]
[347121686,1735511438509,-500.0,0.00013273,2]
[347121687,1735511438519,-500.0,0.00013273,2]
[347121688,1735511438529,-500.0,0.00013547,2]
[347121689,1735511438539,-1842.72,0.00013547,2]
[347121690,1735511438549,-7276.69,0.00013547,2]
[347121692,1735511438559,-1864.36,0.00013547,2]
[347121693,1735511438570,-1909.54,0.00013547,2]
[347121694,1735511438580,-1326.63,0.00013547,2]
[347121695,1735511438590,-2627.01,0.00013547,2]
[347121696,1735511438599,-834.47,0.00013547,2]
[347121697,1735511438608,-500.0,0.00013547,2]
[347121698,1735511438618,-500.0,0.00013547,2]
[347121699,1735511438627,-553.24,0.00013547,2]
[347121701,1735511438637,-500.0,0.00013547,2]
[347121703,1735511438650,-500.0,0.00013547,2]
[347121705,1735511438664,-500.0,0.00013547,2]
[347121707,1735511438674,-500.0,0.00013547,2]
[347121709,1735511438683,-597.1,0.00013547,2]
[347121711,1735511438694,-500.0,0.00013547,2]
[347121713,1735511438704,-500.0,0.00013547,2]
[347121715,1735511438714,-939.03,0.00013547,2]
[347121717,1735511438724,-722.41,0.00013547,2]
[347121719,1735511438735,-500.0,0.00013547,2]
[347121721,1735511438745,-500.0,0.00013547,2]
[347121724,1735511438756,-166.6,0.00013699,2]
[347121727,1735511438766,-500.0,0.00013821,2]
[347121729,1735511438776,-1842.72,0.00013821,2]
[347121732,1735511438786,-7276.69,0.00013821,2]
[347121735,1735511438796,-1864.36,0.00013821,2]
[347121739,1735511438806,-1909.54,0.00013821,2]
[347121743,1735511438817,-1326.63,0.00013821,2]
[347121746,1735511438828,-2627.01,0.00013821,2]
[347121749,1735511438837,-834.47,0.00013821,2]
[347121752,1735511438847,-500.0,0.00013821,2]
[347121755,1735511438856,-500.0,0.00013821,2]
[347121758,1735511438866,-553.24,0.00013821,2]
[347121760,1735511438875,-500.0,0.00013821,2]
[347121762,1735511438884,-500.0,0.00013821,2]
[347121764,1735511438894,-500.0,0.00013821,2]
[347121766,1735511438904,-500.0,0.00013821,2]
[347121785,1735511439076,-500.0,0.00013821,2]
[347121787,1735511439086,-500.0,0.00013821,2]
[347121789,1735511439096,-722.41,0.00013821,2]
[347121791,1735511439105,-939.03,0.00013821,2]
[347121794,1735511439115,-500.0,0.00013821,2]
[347121796,1735511439124,-20000.0,0.00014,2]
[347121798,1735511439134,-500.0,0.00014,2]
[347121800,1735511439143,-500.0,0.00014095,2]
[347121802,1735511439152,-1842.72,0.00014095,2]
[347121804,1735511439161,-7276.69,0.00014095,2]
[347121806,1735511439171,-1864.36,0.00014095,2]
[347121808,1735511439180,-1909.54,0.00014095,2]
[347121810,1735511439189,-1326.63,0.00014095,2]
[347121812,1735511439198,-2627.01,0.00014095,2]
[347121814,1735511439208,-834.47,0.00014095,2]
[347121816,1735511439218,-500.0,0.00014095,2]
[347121818,1735511439227,-500.0,0.00014095,2]
[347121820,1735511439236,-553.24,0.00014095,2]
[347121822,1735511439245,-488.55879446,0.00014095,2]
[347121824,1735511439254,-500.0,0.00014095,2]
[347121826,1735511439264,-464.113,0.00014095,2]
[347121828,1735511439273,-500.0,0.00014095,2]
[347121830,1735511439283,-500.0,0.00014095,2]
[347121832,1735511439292,-500.0,0.00014095,2]
[347121834,1735511439301,-722.41,0.00014095,2]
[347121836,1735511439310,-500.0,0.00014095,2]
[347121838,1735511439321,-275.65,0.00014114,2]
[347121840,1735511439331,-500.0,0.00014369,2]
[347121842,1735511439341,-1842.72,0.00014369,2]
[347121844,1735511439350,-7276.69,0.00014369,2]
[347121846,1735511439360,-1864.36,0.00014369,2]
[347121848,1735511439371,-1909.54,0.00014369,2]
[347121850,1735511439381,-1326.63,0.00014369,2]
[347121852,1735511439391,-2627.01,0.00014369,2]
[347121854,1735511439400,-834.47,0.00014369,2]
[347121856,1735511439410,-500.0,0.00014369,2]
[347121858,1735511439420,-500.0,0.00014369,2]
[347121860,1735511439429,-553.24,0.00014369,2]
[347121862,1735511439438,-500.0,0.00014369,2]
[347121864,1735511439447,-500.0,0.00014369,2]
[347121866,1735511439456,-500.0,0.00014369,2]
[347121868,1735511439466,-500.0,0.00014369,2]
[347121870,1735511439475,-722.41,0.00014369,2]
[347121872,1735511439484,-150.0,0.00014533,2]
[347121875,1735511439494,-500.0,0.00014643,2]
[347121877,1735511439503,-1842.72,0.00014643,2]
[347121879,1735511439513,-7276.69,0.00014643,2]
[347121880,1735511439522,-1864.36,0.00014643,2]
[347121882,1735511439531,-1909.54,0.00014643,2]
[347121884,1735511439540,-1326.63,0.00014643,2]
[347121887,1735511439549,-2627.01,0.00014643,2]
[347121889,1735511439560,-834.47,0.00014643,2]
[347121891,1735511439570,-500.0,0.00014643,2]
[347121893,1735511439582,-500.0,0.00014643,2]
[347121895,1735511439594,-553.24,0.00014643,2]
[347121897,1735511439603,-500.0,0.00014643,2]
[347121899,1735511439612,-500.0,0.00014643,2]
[347121901,1735511439622,-500.0,0.00014643,2]
[347121903,1735511439631,-500.0,0.00014643,2]
[347121905,1735511439640,-722.41,0.00014643,2]
[347121907,1735511439654,-1609.76,0.00014804,2]
[347121909,1735511439664,-150.0,0.00014844,2]
[347121911,1735511439674,-150.0,0.00014844,2]
[347121913,1735511439683,-150.0,0.00014844,2]
[347121914,1735511439693,-150.0,0.00014844,2]
[347121917,1735511439702,-793.79,0.00014855,2]
[347121918,1735511439712,-500.0,0.00014917,2]
[347121921,1735511439722,-1842.72,0.00014917,2]
[347121922,1735511439731,-7276.69,0.00014917,2]
[347121924,1735511439740,-1864.36,0.00014917,2]
[347121926,1735511439750,-1909.54,0.00014917,2]
[347121929,1735511439760,-1326.63,0.00014917,2]
[347121931,1735511439770,-2627.01,0.00014917,2]
[347121932,1735511439779,-834.47,0.00014917,2]
[347121934,1735511439788,-500.0,0.00014917,2]
[347121936,1735511439798,-500.0,0.00014917,2]
[347121938,1735511439809,-553.24,0.00014917,2]
[347121940,1735511439818,-632.02550943,0.00014917,2]
[347121942,1735511439827,-500.0,0.00014917,2]
[347121945,1735511439837,-500.0,0.00014917,2]
[347121948,1735511439860,-500.0,0.00014917,2]
[347121951,1735511439876,-722.41,0.00014917,2]
[347121953,1735511439895,-184.69,0.00014976,2]
[347121957,1735511439914,-150.0,0.00014981,2]
[347121960,1735511439928,-150.0,0.00015119,2]
[347121963,1735511439946,-1500.0,0.00015172,2]
[347121968,1735511439965,-150.0,0.00015174,2]
[347121971,1735511439982,-500.0,0.00015191,2]
[347121974,1735511440001,-1842.72,0.00015191,2]
[347121977,1735511440017,-7276.69,0.00015191,2]
[347121980,1735511440036,-1864.36,0.00015191,2]
[347121983,1735511440051,-1909.54,0.00015191,2]
[347121988,1735511440068,-1326.63,0.00015191,2]
[347121991,1735511440083,-2627.01,0.00015191,2]
[347121996,1735511440096,-834.47,0.00015191,2]
[347122000,1735511440113,-500.0,0.00015191,2]
[347122005,1735511440126,-500.0,0.00015191,2]
[347122009,1735511440140,-553.24,0.00015191,2]
[347122013,1735511440159,-500.0,0.00015191,2]
[347122018,1735511440173,-500.0,0.00015191,2]
[347122021,1735511440188,-500.0,0.00015191,2]
[347122023,1735511440203,-722.41,0.00015191,2]
[347122026,1735511440217,-250.0,0.00015222,2]
[347122028,1735511440233,-200.0,0.00015224,2]
[347122029,1735511440248,-250.0,0.00015243,2]
[347122030,1735511440263,-231.62,0.00015251,2]
[347122032,1735511440278,-150.0,0.00015256,2]
[347122034,1735511440293,-150.0,0.00015256,2]
[347122037,1735511440308,-250.0,0.00015285,2]
[347122039,1735511440324,-23900.0,0.00015355,2]
[347122042,1735511440338,-1000.0,0.00015376,2]
[347122044,1735511440353,-150.0,0.00015394,2]
[347122047,1735511440368,-1256.51,0.00015456,2]
[347122050,1735511440383,-161.34,0.00015462,2]
[347122052,1735511440397,-500.0,0.00015465,2]
[347122054,1735511440411,-1842.72,0.00015465,2]
[347122057,1735511440426,-7276.69,0.00015465,2]
[347122059,1735511440441,-1864.36,0.00015465,2]
[347122062,1735511440456,-1909.54,0.00015465,2]
[347122064,1735511440471,-1326.63,0.00015465,2]
[347122067,1735511440485,-2627.01,0.00015465,2]
[347122069,1735511440500,-834.47,0.00015465,2]
[347122072,1735511440514,-500.0,0.00015465,2]
[347122074,1735511440529,-500.0,0.00015465,2]
[347122077,1735511440543,-553.24,0.00015465,2]
[347122079,1735511440557,-500.0,0.00015465,2]
[347122082,1735511440573,-500.0,0.00015465,2]
[347122084,1735511440588,-500.0,0.00015465,2]
[347122087,1735511440602,-150.0,0.00015504,2]
[347122089,1735511440617,-781.93,0.0001551,2]
[347122092,1735511440631,-150.0,0.00015531,2]
[347122094,1735511440647,-150.0,0.00015668,2]
[347122097,1735511440667,-150.0,0.00015668,2]
[347122099,1735511440681,-502.522,0.0001568,2]
[347122102,1735511440695,-167.31,0.00015709,2]
[347122104,1735511440710,-500.0,0.00015739,2]
[347122107,1735511440724,-1842.72,0.00015739,2]
[347122109,1735511440741,-7276.69,0.00015739,2]
[347122112,1735511440756,-1864.36,0.00015739,2]
[347122114,1735511440771,-1909.54,0.00015739,2]
[347122117,1735511440791,-1326.63,0.00015739,2]
[347122121,1735511440812,-2627.01,0.00015739,2]
[347122123,1735511440832,-834.47,0.00015739,2]
[347122127,1735511440852,-500.0,0.00015739,2]
[347122130,1735511440872,-500.0,0.00015739,2]
[347122132,1735511440890,-553.24,0.00015739,2]
[347122135,1735511440909,-500.0,0.00015739,2]
[347122138,1735511440927,-500.0,0.00015739,2]
[347122141,1735511440944,-500.0,0.00015739,2]
[347122143,1735511440959,-150.0,0.00015806,2]
[347122146,1735511440977,-436.65,0.0001583,2]
[347122148,1735511440993,-436.65,0.0001583,2]
[347122151,1735511441010,-436.65,0.0001583,2]
[347122154,1735511441024,-150.0,0.00015833,2]
[347122156,1735511441034,-500.0,0.00015863,2]
[347122158,1735511441043,-150.0,0.00015943,2]
[347122160,1735511441053,-35574.80188273,0.0001598,2]
[347122162,1735511441063,-600.0,0.00015987,2]
[347122164,1735511441073,-550.0,0.00016,2]
[347122166,1735511441083,-5331.39775481,0.00016,2]
[347122194,1735511441328,-16739.60067339,0.00016,2]
[347122198,1735511441356,-150.0,0.00016003,2]
[347122201,1735511441376,-500.0,0.00016013,2]
[347122203,1735511441387,-1842.72,0.00016013,2]
[347122205,1735511441396,-7276.69,0.00016013,2]
[347122207,1735511441406,-1864.36,0.00016013,2]
[347122209,1735511441415,-1909.54,0.00016013,2]
[347122211,1735511441425,-1326.63,0.00016013,2]
[347122213,1735511441435,-2627.01,0.00016013,2]
[347122215,1735511441444,-834.47,0.00016013,2]
[347122217,1735511441453,-500.0,0.00016013,2]
[347122219,1735511441462,-500.0,0.00016013,2]
[347122221,1735511441471,-553.24,0.00016013,2]
[347122222,1735511441481,-500.0,0.00016013,2]
[347122224,1735511441490,-500.0,0.00016013,2]
[347122226,1735511441499,-500.0,0.00016013,2]
[347122228,1735511441508,-150.0,0.00016081,2]
[347122230,1735511441517,-150.0,0.00016081,2]
[347122232,1735511441526,-150.0,0.00016163,2]
[347122234,1735511441535,-298.2427709,0.00016168,2]
[347122236,1735511441545,-300.0,0.000162,2]
[347122238,1735511441554,-150.0,0.000162,2]
[347122240,1735511441563,-150.0,0.00016218,2]
[347122242,1735511441574,-498.47,0.00016222,2]
[347122244,1735511441583,-502.3,0.00016253,2]
[347122246,1735511441592,-38652.31232325,0.00016263,2]
[347122248,1735511441602,-500.0,0.00016287,2]
[347122250,1735511441611,-1842.72,0.00016287,2]
[347122252,1735511441621,-7276.69,0.00016287,2]
[347122254,1735511441630,-1864.36,0.00016287,2]
[347122256,1735511441639,-1909.54,0.00016287,2]
[347122258,1735511441651,-1326.63,0.00016287,2]
[347122260,1735511441663,-2627.01,0.00016287,2]
[347122262,1735511441672,-834.47,0.00016287,2]
[347122264,1735511441681,-500.0,0.00016287,2]
[347122266,1735511441692,-500.0,0.00016287,2]
[347122268,1735511441702,-553.24,0.00016287,2]
[347122271,1735511441712,-443.67736213,0.00016287,2]
[347122272,1735511441721,-500.0,0.00016287,2]
[347122275,1735511441731,-500.0,0.00016287,2]
[347122277,1735511441741,-29173.7518,0.00016299,2]
[347122278,1735511441751,-6561.0648,0.00016299,2]
[347122280,1735511441760,-151.5114802,0.000163,2]
[347122282,1735511441769,-493.95,0.00016304,2]
[347122284,1735511441779,-2372.97762,0.0001633,2]
[347122287,1735511441789,-254.08866128,0.00016338,2]
[347122289,1735511441798,-150.0,0.00016356,2]
[347122291,1735511441807,-842.3602,0.00016363,2]
[347122293,1735511441818,-1485.7294,0.00016363,2]
[347122294,1735511441828,-14936.5531,0.00016363,2]
[347122296,1735511441838,-7274.7812,0.00016363,2]
[347122299,1735511441847,-345.919,0.00016363,2]
[347122301,1735511441857,-500.0,0.00016365,2]
[347122303,1735511441866,-500.0,0.00016365,2]
[347122304,1735511441875,-500.0,0.00016366,2]
[347122306,1735511441884,-500.0,0.00016366,2]
[347122308,1735511441894,-500.0,0.00016366,2]
[347122309,1735511441903,-500.0,0.00016366,2]
[347122310,1735511441913,-500.0,0.00016366,2]
[347122311,1735511441922,-500.0,0.00016366,2]
[347122312,1735511441931,-26178.0,0.00016384,2]
[347122313,1735511441941,-426.59380238,0.00016387,2]
[347122314,1735511441951,-456.40062465,0.00016392,2]
[347122315,1735511441961,-456.40062465,0.00016392,2]
[347122316,1735511441970,-456.40062465,0.00016393,2]
[347122317,1735511441979,-456.40062465,0.00016394,2]
[347122319,1735511441989,-150.123007,0.00016394,2]
[347122321,1735511441999,-150.123007,0.00016394,3]
[347122322,1735511442008,-150.123007,0.00016394,4]
[347122323,1735511442018,-150.123007,0.00016394,4]
[347122324,1735511442028,-150.123007,0.00016394,3]
[347122325,1735511442037,-456.40062465,0.00016394,2]
[347122326,1735511442047,-456.40062465,0.00016395,2]
[347122327,1735511442056,-165.1905704,0.00016395,2]
[347122328,1735511442066,-1111.123007,0.00016395,4]
[347122329,1735511442076,-1111.123007,0.00016395,3]
[347122330,1735511442086,-1111.123007,0.00016395,2]
[347122331,1735511442095,-174.44156013,0.00016395,2]
[347122332,1735511442105,-506.8,0.00016396,2]
[347122333,1735511442115,-2222.123007,0.00016396,4]
[347122334,1735511442125,-2222.123007,0.00016396,3]
[347122335,1735511442135,-2222.123007,0.00016396,2]
[347122336,1735511442145,-151.5114802,0.00016396,2]
[347122337,1735511442155,-2222.123007,0.00016397,2]
[347122338,1735511442165,-2222.123007,0.00016397,3]
[347122339,1735511442174,-2222.123007,0.00016397,4]
[347122340,1735511442184,-2222.123007,0.00016398,4]
[347122341,1735511442193,-2222.123007,0.00016398,3]
[347122342,1735511442203,-2222.123007,0.00016398,2]
[347122343,1735511442212,-500.0,0.00016399,2]
[347122344,1735511442222,-500.0,0.00016399,2]
[347122345,1735511442232,-500.0,0.00016399,2]
[347122346,1735511442241,-672.31,0.00016399,2]
[347122347,1735511442250,-572.33,0.00016399,2]
[347122348,1735511442260,-500.0,0.00016399,2]
[347122349,1735511442269,-500.0,0.00016399,2]
[347122350,1735511442283,-677.85,0.00016399,2]
[347122351,1735511442292,-657.99,0.00016399,2]
[347122352,1735511442302,-500.0,0.00016399,2]
[347122353,1735511442311,-500.0,0.00016399,2]
[347122354,1735511442321,-500.0,0.00016399,2]
[347122355,1735511442331,-500.0,0.00016399,2]
[347122356,1735511442341,-501.34916681,0.00016399,2]
[347122357,1735511442350,-500.0,0.00016399,2]
[347122358,1735511442359,-500.0,0.00016399,2]
[347122359,1735511442369,-500.0,0.00016399,2]
[347122360,1735511442378,-500.0,0.00016399,2]
[347122361,1735511442387,-763.87,0.00016399,2]
[347122362,1735511442396,-516.48,0.00016399,2]
[347122363,1735511442405,-500.0,0.00016399,2]
[347122364,1735511442415,-500.0,0.00016399,2]
[347122365,1735511442424,-500.0,0.00016399,2]
[347122366,1735511442433,-500.0,0.00016399,2]
[347122367,1735511442443,-500.0,0.00016399,2]
[347122368,1735511442453,-500.0,0.00016399,2]
[347122369,1735511442462,-500.0,0.00016399,2]
[347122370,1735511442471,-500.0,0.00016399,2]
[347122371,1735511442481,-500.0,0.00016399,2]
[347122372,1735511442490,-500.0,0.00016399,2]
[347122373,1735511442499,-978.51,0.00016399,2]
[347122374,1735511442509,-527.6,0.00016399,2]
[347122375,1735511442520,-500.0,0.00016399,2]
[347122376,1735511442530,-737.6,0.00016399,2]
[347122377,1735511442539,-500.0,0.00016399,2]
[347122378,1735511442550,-1017.16,0.00016399,2]
[347122379,1735511442560,-500.0,0.00016399,2]
[347122380,1735511442570,-500.0,0.00016399,2]
[347122381,1735511442582,-539.83,0.00016399,2]
[347122382,1735511442593,-1008.17,0.00016399,2]
[347122383,1735511442607,-500.0,0.00016399,2]
[347122384,1735511442617,-508.41,0.00016399,2]
[347122385,1735511442629,-543.91,0.00016399,2]
[347122386,1735511442639,-500.0,0.00016399,2]
[347122387,1735511442654,-500.0,0.00016399,2]
[347122388,1735511442664,-500.0,0.00016399,2]
[347122389,1735511442673,-1025.52,0.00016399,2]
[347122390,1735511442682,-673.63,0.00016399,2]
[347122391,1735511442692,-507.78,0.00016399,2]
[347122392,1735511442702,-500.0,0.00016399,2]
[347122393,1735511442711,-500.0,0.00016399,2]
[347122394,1735511442721,-338.18427263,0.00016399,2]
[347122395,1735511442731,-523.0,0.00016399,2]
[347122396,1735511442741,-500.0,0.00016399,2]
[347122397,1735511442751,-500.0,0.00016399,2]
[347122398,1735511442761,-502.87541995,0.00016399,2]
[347122399,1735511442770,-534.84,0.00016399,2]
[347122400,1735511442780,-500.0,0.00016399,2]
[347122401,1735511442790,-675.72,0.00016399,2]
[347122402,1735511442801,-533.5,0.00016399,2]
[347122403,1735511442811,-500.0,0.00016399,2]
[347122404,1735511442821,-500.0,0.00016399,2]
[347122405,1735511442835,-1070.22,0.00016399,2]
[347122406,1735511442845,-952.86,0.00016399,2]
[347122407,1735511442854,-500.0,0.00016399,2]
[347122408,1735511442864,-500.0,0.00016399,2]
[347122409,1735511442873,-500.0,0.00016399,2]
[347122410,1735511442883,-550.07,0.00016399,2]
[347122411,1735511442892,-500.0,0.00016399,2]
[347122412,1735511442902,-500.0,0.00016399,2]
[347122413,1735511442911,-500.0,0.00016399,2]
[347122414,1735511442920,-642.65,0.00016399,2]
[347122415,1735511442930,-601.93,0.00016399,2]
[347122416,1735511442940,-946.01,0.00016399,2]
[347122417,1735511442949,-767.23,0.00016399,2]
[347122418,1735511442959,-500.0,0.00016399,2]
[347122419,1735511442968,-943.87,0.00016399,2]
[347122420,1735511442979,-500.0,0.00016399,2]
[347122422,1735511442988,-500.0,0.00016399,2]
[347122424,1735511442997,-763.22,0.00016399,2]
[347122425,1735511443007,-500.0,0.00016399,2]
[347122426,1735511443016,-500.0,0.00016399,2]
[347122427,1735511443025,-500.0,0.00016399,2]
[347122428,1735511443034,-500.0,0.00016399,2]
[347122429,1735511443044,-637.85,0.00016399,2]
[347122431,1735511443054,-500.0,0.00016399,2]
[347122433,1735511443064,-524.65,0.00016399,2]
[347122435,1735511443075,-1601288.60121129,0.000164,2]
[347122437,1735511443085,-14989.9677083,0.000164,2]
[347122439,1735511443095,-1337850.96141502,0.000164,2]
[347122459,1735511443715,-387.45481962,0.00014369,2]
[347122460,1735511443728,-112.54518038,0.00014369,2]
[347122462,1735511443738,-24767.30035962,0.000164,2]
[347122463,1735511443761,-1769.98,0.00012999,2]
[347122464,1735511443770,-17158.93,0.000164,2]
[347122465,1735511444284,-500.0,0.00012999,2]
[347122466,1735511444293,-1769.98,0.00013273,2]
[347122467,1735511444302,-1769.98,0.00013547,2]
[347122468,1735511444312,-1284.33768636,0.00013821,2]
[347122469,1735511444337,-485.64231364,0.00013821,2]
[347122470,1735511444347,-939.03,0.00014095,2]
[347122471,1735511444356,-1769.98,0.00014095,2]
[347122472,1735511444366,-1769.98,0.00014369,2]
[347122473,1735511444375,-939.03,0.00014369,2]
[347122474,1735511444384,-533.12,0.00014643,2]
[347122475,1735511444394,-1769.98,0.00014643,2]
[347122476,1735511444404,-722.41,0.00015465,2]